Cogmind - Beta 14 @@@ ROGUE MODE // 2024.09.24 @ 22:46:31 Player: Null_error Result: Destroyed by WT-NS2(R) with Subdweller Laser Performance ------------- Evolutions (0) 0 Regions Visited (2) 400 Robots Destroyed (15) 75 Value Destroyed (404) 404 Prototype IDs (0) 0 Alien Tech Used (0) 0 Bonus (0) 0 TOTAL SCORE: 879 Bonus ------- None Cogmind --------- Core Integrity 0/250 Matter 234/300 Energy 200/200 System Corruption 0% Temperature Cool (6) Movement Core (150) Ox2 Location -10/Subcaves Parts ------- > --- POWER (1) -------- Subdweller Power Source > --- PROPULSION (2) --- (None) > --- UTILITY (2) ------ Structural Scanner Subdweller Optics > --- WEAPON (2) ------- (None) > --- INVENTORY (5) ---- Medium Storage Unit Subdweller Optics Datajack Peak State ------------ > --- POWER ------------ Subdweller Power Source > --- PROPULSION ------- Light Treads Subdweller Monowheel > --- UTILITY ---------- Structural Scanner Subdweller Optics > --- WEAPON ----------- Medium Laser Subdweller Machine Gun > --- INVENTORY -------- Aluminum Leg Compact Wheel Medium Storage Unit Subdweller Optics Datajack [Rating: 11] Favorites ----------- Power Ion Engine Engine Ion Engine Propulsion Light Treads Treads Light Treads Leg Aluminum Leg Wheel Subdweller Monowheel Utility Huge Storage Unit Device Structural Scanner Storage Huge Storage Unit Protection Power Shielding Weapon Medium Laser Energy Gun Medium Laser Ballistic Gun Assault Rifle Ballistic Cannon Light Cannon Launcher Grenade Launcher Build | -11 -10 -10 ------- Run | Yrd Mat Sub Slots Evolved . | . . . Power . | . . . Propulsion . | . . . Utility . | . . . Weapon . | . . . Parts Attached 29 | 7 10 12 Power 4 | 1 . 3 Engine 4 | 1 . 3 Core . | . . . Reactor . | . . . Propulsion 9 | 3 2 4 Treads 2 | . 2 . Leg 4 | 2 . 2 Wheel 3 | 1 . 2 Hover . | . . . Flight . | . . . Utility 7 | 1 3 3 Device 4 | . 1 3 Storage 2 | 1 1 . Processor . | . . . Hackware . | . . . Protection 1 | . 1 . Artifact . | . . . Weapon 9 | 2 5 2 Energy Gun 3 | 1 2 . Energy Cannon . | . . . Ballistic Gun 2 | 1 . 1 Ballistic Cannon 3 | . 2 1 Launcher 1 | . 1 . Special Weapon . | . . . Impact Weapon . | . . . Slashing Weapon . | . . . Piercing Weapon . | . . . Special Melee Weapon . | . . . Unidentified Prototypes . | . . . Parts Lost 9 | . . 9 Power 1 | . . 1 Propulsion 5 | . . 5 Utility . | . . . Weapon 3 | . . 3 Highest Loss Streak 4 | . . 4 To Critical Strikes . | . . . Average Slot Usage (%) 91 | . 91 94 Engine 13 | . 14 12 Treads 16 | . 17 15 Leg 8 | . 10 2 Wheel 2 | . . 9 Device 8 | . 2 22 Storage 11 | . 14 5 Protection 2 | . 3 . Energy Gun 14 | . 14 11 Ballistic Gun 5 | . 4 7 Ballistic Cannon 6 | . 8 1 Launcher 1 | . . 4 Peak Build Rating 11 | 6 7 11 Average Rating 6 | 4 6 8 On Entrance 4 | . 6 7 Naked Turns . | . . . Heaviest Build 91 | 14 91 91 Greatest Support 40 | 20 40 40 Greatest Overweight (x) 4 | 1 2 4 Average Overweight (x) . | . . . Largest Inventory Capacity 25 | 8 25 25 Average Capacity 16 | 7 18 12 Most Carried 9 | 3 9 9 Average Carried 5 | 1 5 6 Final Capacity 25 | 8 25 5 Final Carried 9 | 3 9 3 Class Distribution -------------------- 83% | Mutant 16% | Scavenger-Mutant Dominant Class ---------------- Mutant | -10/Materials Scavenger-Mutant | -10/Subcaves Resources | -11 -10 -10 ----------- Run | Yrd Mat Sub Matter Collected 586 | 279 218 89 Remotely . | . . . Salvage Created 491 | 95 276 120 Parts 21 | . 14 7 Haulers Intercepted . | . . . Recyclers Shooed 2 | . 2 . Parts Field Recycled . | . . . Retrieved Matter . | . . . Parts Self-Destructed 8 | . . 8 Prevented . | . . . Kills | -11 -10 -10 ------- Run | Yrd Mat Sub Combat Hostiles Destroyed 9 | . 4 5 Melee 1 | . . 1 Guns 6 | . 4 2 Cannons 1 | . . 1 AOE 1 | . . 1 Classes Destroyed 7 | 1 5 1 Worker 1 | . 1 . Builder 1 | . 1 . Tunneler 1 | . 1 . Recycler 2 | 1 1 . Watcher 1 | . 1 . Grunt 6 | . 4 2 Subdweller 3 | . . 3 Best Kill Streak 2 | 1 2 1 Combat Bots Only 2 | . 2 1 Max Kills in Single Turn 1 | 1 1 1 Gunslinging . | . . . Exploded 1 | . . 1 Melee 1 | . . 1 Uniques/NPCs Destroyed . | . . . Combat | -11 -10 -10 -------- Run | Yrd Mat Sub Hostile Shots Fired 100 | . 37 63 Missed 26 | . 9 17 Damage Taken 1370 | . 403 967 Core 258 | . 40 218 Absorbed by Shields . | . . . Core Remaining (%) 100 | 100 . . Volleys Fired 86 | 3 49 34 Largest 2 | 2 2 2 Hottest 85 | 70 85 85 Shots Fired 150 | 6 97 47 Gun 133 | 6 87 40 Cannon 12 | . 9 3 Launcher 5 | . 1 4 Special . | . . . Kinetic 70 | 3 48 19 Thermal 75 | 3 48 24 Explosive 5 | . 1 4 Electromagnetic . | . . . Robot Hit Streak 19 | 4 14 19 Robot Miss Streak 5 | 2 5 2 Penetration Max . | . . . Secondary Targets . | . . . Shots Hit Robots 92 | 4 57 31 Core Hits 28 | 2 16 10 Critical Kills . | . . . Critical Parts Destroyed 2 | . 2 . Critical Strikes 8 | . 7 1 Burn 6 | . 5 1 Destroy 2 | . 2 . Melee Attacks . | . . . Impact . | . . . Slashing . | . . . Piercing . | . . . Sneak Attacks . | . . . Combat Hostiles . | . . . Follow-up Attacks . | . . . Damage Inflicted 1355 | 48 744 563 Guns 1080 | 48 647 385 Cannons 125 | . 86 39 Explosions 119 | . . 119 Melee . | . . . Ramming 31 | . 11 20 Kinetic 749 | 23 390 336 Thermal 456 | 25 343 88 Explosive 119 | . . 119 Electromagnetic . | . . . Impact . | . . . Slashing . | . . . Piercing . | . . . Highest Corruption . | . . . Average Corruption . | . . . Corruption Purged . | . . . Corruption Blocked . | . . . Overload Shots . | . . . Overflow Damage 12 | . 12 . Projectiles 12 | . 12 . Explosions . | . . . Melee . | . . . Knockbacks . | . . . Impact . | . . . Kinetic . | . . . Secondary . | . . . Self-Inflicted Damage 30 | . 6 24 Shots 3 | . 1 2 Rammed 3 | . 1 2 Targets Rammed 17 | . 3 14 Kicked 11 | . . 11 Crushed 3 | . 2 1 Highest Temperature 187 | 27 187 . Average Temperature 51 | 14 53 . Received Heat Transfer 480 | . 267 213 Siege Activations . | . . . Robots Corrupted . | . . . Combat Hostiles . | . . . Parts Fried . | . . . Impact Corruptions . | . . . Robots Melted . | . . . Combat Hostiles . | . . . Parts Melted . | . . . Heat Transferred 1776 | 74 1369 333 Parts Sabotaged . | . . . Parts Stolen . | . . . Parts Stripped . | . . . Power Chain Reactions . | . . . Alert | -11 -10 -10 ------- Run | Yrd Mat Sub Peak Influence 137 | 5 137 . Initial 3 | . 3 . Average 39 | . 42 . Maximum Alert Level . | . . . Low Security (%) 100 | 100 100 . Level 1 . | . . . Level 2 . | . . . Level 3 . | . . . Level 4 . | . . . Level 5 . | . . . High Security . | . . . Max Security . | . . . Squads Dispatched . | . . . Investigation . | . . . Extermination . | . . . Reinforcement . | . . . Assault . | . . . Garrison . | . . . Intercept . | . . . Searches Triggered . | . . . Construction Impeded . | . . . Haulers Reinforced . | . . . Active Scanning Responses . | . . . Cargo Convoy Interrupts . | . . . Stealth | -11 -10 -10 --------- Run | Yrd Mat Sub Distress Signals 1 | . 1 . Communications Jammed . | . . . Distress Signals . | . . . Times Spotted 17 | . 9 8 Peak Tracking Total 3 | . 3 3 Tactical Retreats 2 | . . 2 Traps | -11 -10 -10 ------- Run | Yrd Mat Sub Traps Triggered . | . . . Indirectly . | . . . Trap Hack Attempts . | . . . Triggered . | . . . Disarmed . | . . . Reprogrammed . | . . . Reused . | . . . Traps Extracted . | . . . Installed . | . . . Triggered . | . . . Machines | -11 -10 -10 ---------- Run | Yrd Mat Sub Machines Disabled 1 | . 1 . Max in Single Turn 1 | . 1 . Machines Repaired . | . . . Machines Dismantled . | . . . Machines Sabotaged . | . . . Overloaded Fab Kills . | . . . Hacking | -11 -10 -10 --------- Run | Yrd Mat Sub Machines Accessed 2 | . 2 . Terminals 2 | . 2 . Fabricators . | . . . Repair Stations . | . . . Recycling Units . | . . . Scanalyzers . | . . . Garrison Access . | . . . Total Hacks 4 | . 4 . Successful 2 | . 2 . Failed 1 | . 1 . Catastrophic . | . . . Database Lockouts 1 | . 1 . Manual 5 | . 5 . Terminals 4 | . 4 . Fabricators . | . . . Repair Stations . | . . . Recycling Units . | . . . Scanalyzers . | . . . Garrison Access . | . . . Terminal Hacks 2 | . 2 . Robot Analysis 2 | . 2 . Fabricator Hacks . | . . . Repair Station Hacks . | . . . Recycling Unit Hacks . | . . . Scanalyzer . | . . . Garrison Access Hacks . | . . . Unauthorized Hacks . | . . . Terminals . | . . . Fabricators . | . . . Repair Stations . | . . . Recycling Units . | . . . Scanalyzers . | . . . Garrison Access . | . . . Data Cores Recovered . | . . . Used . | . . . Hacking Detections 2 | . 2 . Full Trace Events . | . . . Feedback Events . | . . . Feedback Blocked . | . . . Robot Schematics Acquired . | . . . Robots Built . | . . . Authchips . | . . . Time . | . . . Total Robot Build Rating . | . . . Part Schematics Acquired . | . . . Parts Built . | . . . Authchips . | . . . Time . | . . . Total Part Build Rating . | . . . Parts Repaired . | . . . Time . | . . . Parts Recycled . | . . . Recycled Matter . | . . . Retrieved Matter . | . . . Retrieved Components . | . . . Parts Scanalyzed . | . . . Part Schematics Acquired . | . . . Parts Damaged . | . . . Bothacking | -11 -10 -10 ------------ Run | Yrd Mat Sub Used RIF Installer . | . . . Robots Hacked . | . . . Non-combat . | . . . Combat . | . . . Robot Hacks Applied . | . . . Relay Couplers Released . | . . . Fabnet Peak Effective % . | . . . Robots Rewired . | . . . Allies Hacked . | . . . Hacks Repelled . | . . . Allies | -11 -10 -10 -------- Run | Yrd Mat Sub Total Allies . | . . . Largest Group . | . . . Highest-Rated Group . | . . . Highest-Rated Ally . | . . . Total Orders . | . . . Ally Attacks . | . . . Total Damage . | . . . Kills . | . . . Allies Corrupted . | . . . Allies Melted . | . . . Intel | -11 -10 -10 ------- Run | Yrd Mat Sub Robot Analysis Total 2 | . 2 . Derelict Logs Recovered . | . . . Drone Launches . | . . . Drone Recoveries . | . . . Exploration | -11 -10 -10 ------------- Run | Yrd Mat Sub Turns Passed 1555 | 80 1078 397 Spaces Moved 629 | 46 407 176 Core 9 | 4 . 5 Treads 207 | . 169 38 Legs 276 | 36 238 2 Wheels 137 | 6 . 131 Hover . | . . . Flight . | . . . Fastest Speed 50 | 50 120 105 Average Speed 182 | 121 203 149 Slowest Speed 480 | 190 320 480 Overloaded Moves . | . . . Propulsion Burnouts . | . . . Robots Hopped . | . . . Cave-ins Triggered . | . . . Exploration Rate (%) 20 | 4 42 16 Regions Visited 2 Branch Regions 1 Pre-discovered Areas . | . . . Known Exits Taken . | . . . Unknown Exits Taken 2 | 1 1 . Scrap Searched . | . . . Spaces Dug 4 | . . 4 Terrain Destroyed 19 | . . 19 Melee . | . . . Projectile . | . . . AOE 19 | . . 19 Terrain Rammed . | . . . Walls Destroyed . | . . . Machines Disabled . | . . . Actions | -11 -10 -10 --------- Run | Yrd Mat Sub Total 868 | 60 553 255 Wait 96 | 2 78 16 Move 627 | 45 406 176 Hop . | . . . Pick Up 8 | 3 5 . Fast Attach 8 | 6 2 . Attach 6 | . . 6 Detach 2 | . 1 1 Swap 15 | 1 8 6 Drop 3 | . 1 2 Fire 86 | 3 49 34 Melee . | . . . Ram . | . . . Kick 11 | . . 11 Crush 6 | . 3 3 Escape Stasis . | . . . Rewire . | . . . Trap . | . . . Miscellaneous . | . . . Route ------- -11/Scrapyard -10/Materials (discovered 3 exits: [*Mat] / [*Min] / [*Sub]) -10/Subcaves (discovered 1 exit: [*Mat]) History --------- Turn | Location | Event 21 | -11/Scrapyard | Discovered new exit (range 15) 81 | -11/Scrapyard | Entered Materials 310 | -10/Materials | Build established: Mutant 379 | -10/Materials | Discovered new exit (range 12) 404 | -10/Materials | Central database locked down 677 | -10/Materials | Discovered new exit (range 16) 961 | -10/Materials | Discovered new exit (range 10) 1159 | -10/Materials | Entered Subcaves 1311 | -10/Subcaves | Lost 3 parts (1p1n1w) 1372 | -10/Subcaves | A swath of the cavern ceiling suddenly collapsed 1481 | -10/Subcaves | Core integrity fell below 50% 1498 | -10/Subcaves | Discovered new exit (range 7) 1536 | -10/Subcaves | Core integrity fell below 20% 1556 | -10/Subcaves | Destroyed by WT-NS2(R) with Subdweller Laser Last Messages --------------- 01400_ CV-2BQ(R) destroyed. 01405_ Dropped Sub. Optics. 01409_ Dropped Lgt. Ion Engine. 01412_ Acquired 33 matter. 01419_ Acquired 9 matter. 01465_ Lgt. Treads destroyed. 01486_ Med. Laser destroyed. 01490_ MK-UDR(R) destroyed. 01494_ Acquired 26 matter. 01498_ EXIT=FOUND 01528_ NK-U47(R) affixes Scrap Shield Fragment to Scrap Shield. 01531_ Sub. Monowheel destroyed. 01533_ Sub. Machine Gun destroyed. 01535_ Kicked WT-NS2(R). 01542_ Kicked WT-NS2(R) out of the way. 01543_ Kicked WT-NS2(R). 01545_ Kicked WT-NS2(R) out of the way. 01547_ Com. Wheel destroyed. 01549_ Aluminum Leg destroyed. Map ----- +----------------------------------------------------+ | ???????????????????#### ####### " ######### ## | | ????????????????????### ########" ######### # | | ????????????????????### ?????### ###### # | | ???????????????????### " "#?????## ##### # | | ???????????????###### "" ##?????## ## ## | | ???????????????##### " #"######## #### | | ???????????????## " "" ###### ##### | | ????????????????? " """"" ## #####? | | ???????????????? " #"" #####? | | ??????????????? ?###"" ##? | | ??????????? ???### ?####""# ## ### | | ??????????? ??### ??### #### ### | | ?????????? ???### ##?## ### ## # | | ??????????## ##### ####????##" ### # | | ?????????### ### ####???## #### ## | | ?????????### ###???## ######### | | ?????????## """"" R"""???###### ######## | | ?????????????? ????####### ###????? | | ????????????????? ######?##### ##????? | | ??????????????????### ############# ##????? | | ??????????????????## # # ##### # ##????? | | ??????????????????### * ###????? | | ???????????????????## R#####!# # ####????? | | ??????????????????### # ########### ####?????? | | ??????????????????### # ##?############??????? | | ??????????????????## @ ###???????#####???????? | | ??????????????????### < ###???????????????????? | | ??????????????????#### ##???????????????????? | | ???????????????????##### ##???????????????????? | | ????????????????????##### ???????????????????? | | ??????????????????????#### ???????????????????? | | ???????????????????????#### #????????????????? | | ????????????????????????#########????????????????? | | ??????????????????????????#######????????????????? | | ?????????????????????????????????????????????????? | | ?????????????????????????????????????????????????? | | ?????????????????????????????????????????????????? | | ?????????????????????????????????????????????????? | | ?????????????????????????????????????????????????? | | ?????????????????????????????????????????????????? | | ?????????????????????????????????????????????????? | | ?????????????????????????????????????????????????? | | ?????????????????????????????????????????????????? | | ?????????????????????????????????????????????????? | | ?????????????????????????????????????????????????? | | ?????????????????????????????????????????????????? | | ?????????????????????????????????????????????????? | | ?????????????????????????????????????????????????? | | ?????????????????????????????????????????????????? | | ?????????????????????????????????????????????????? | +----------------------------------------------------+ Best States ------------- Heat Dissipation 25 Energy Generation 15 Energy Capacity 250 Matter Stores 300 Matter Capacity 300 Sight Range 21 Terrain Scan Density 10 Power Shielding 33 Evasion (%) 55 Recoil Reduction 2 Item Schematics ----------------- None Robot Schematics ------------------ None Fabricated ------------ Nothing Alien Tech Used ----------------- None Achievements -------------- None Challenges ------------ None Game ------ Seed WeaponPointySystem Manual? 0 Play Time 00:11:23 Cumulative 65.7 hours Start 2024.09.24 @ 22:35:49 End 2024.09.24 @ 22:46:31 Sessions 1 Manual Loads 0 Difficulty Rogue Special Mode None Game No. 70 Rogue 70 Adventurer 0 Explorer 0 Win Type - Total 1 Types 1/0/0/0/0/0/0/0/0 Lore% 25 Gallery% 47 Achievement% 33 Wizard Run 0 Options --------- Layout 2 ASCII 0 Keyboard 1 Movement Numpad Keybinds 0 Fullscreen 0 Font 20/SmallcapsGlow Map View 50x44 Zoom Use 5% Tactical HUD 1 Map Filters NONE Filters LOW_CONTRAST(5,10,15) Steam 1 RUN: e13a1566-52f4-45d6-876a-735919573439